Cogmind - Beta 13 @@@ ROGUE MODE // 2024.07.01 @ 16:37:43 Player: Jetpackmatt9 Result: Self-destructed Performance ------------- Evolutions (1) 500 Regions Visited (4) 800 Robots Destroyed (26) 130 Value Destroyed (639) 639 Prototype IDs (0) 0 Alien Tech Used (0) 0 Bonus (0) 0 TOTAL SCORE: 2069 Bonus ------- None Cogmind --------- Core Integrity 272/400 Matter 400/400 Energy 160/160 System Corruption 0% Temperature Cool (0) Movement Walking (190) Ox1 Location -9/Exiles Parts ------- > --- POWER (1) -------- Light Nuclear Core > --- PROPULSION (2) --- Carbon-fiber Leg Carbon-fiber Leg > --- UTILITY (4) ------ High-capacity Storage Unit Medium Matter Pod Seismic Detector Light Armor Plating > --- WEAPON (2) ------- Field Laser Field Laser > --- INVENTORY (20) --- Light Ion Engine Light Treads Light Treads Aluminum Leg Aluminum Leg Improved Heat Sink Small Storage Unit Large Storage Unit Visual Processing Unit Sensor Array Terrain Scanner Light Armor Plating Small Laser Heavy Particle Cannon Heavy Particle Cannon Autogun Autogun Datajack Peak State ------------ > --- POWER ------------ Light Nuclear Core > --- PROPULSION ------- Carbon-fiber Leg Carbon-fiber Leg > --- UTILITY ---------- High-capacity Storage Unit Medium Matter Pod Seismic Detector Light Armor Plating > --- WEAPON ----------- Field Laser Field Laser > --- INVENTORY -------- Light Ion Engine Light Treads Light Treads Aluminum Leg Aluminum Leg Improved Heat Sink Small Storage Unit Large Storage Unit Visual Processing Unit Sensor Array Terrain Scanner Light Armor Plating Small Laser Heavy Particle Cannon Heavy Particle Cannon Autogun Autogun Datajack [Rating: 21] Favorites ----------- Power Light Nuclear Core Engine Ion Engine Power Core Light Nuclear Core Propulsion Aluminum Leg Treads Light Treads Leg Aluminum Leg Flight Unit VTOL Module Utility High-capacity Storage Unit Device Seismic Detector Storage High-capacity Storage Unit Processor Terrain Scan Processor Protection Light Armor Plating Weapon Field Laser Energy Gun Field Laser Energy Cannon Heavy Particle Cannon Ballistic Gun Autogun Special Melee Weapon Datajack Build | -11 -10 -9 -9 -9 ------- Run | Yrd Mat Mat Min Exi Slots Evolved 2 | . . 2 . . Power . | . . . . . Propulsion . | . . . . . Utility 2 | . . 2 . . Weapon . | . . . . . Parts Attached 50 | 6 17 25 2 . Power 2 | 1 1 . . . Engine 1 | 1 . . . . Core 1 | . 1 . . . Reactor . | . . . . . Propulsion 20 | 2 6 10 2 . Treads 4 | . . 4 . . Leg 14 | 2 6 4 2 . Wheel . | . . . . . Hover . | . . . . . Flight 2 | . . 2 . . Utility 13 | 1 6 6 . . Device 4 | . 2 2 . . Storage 4 | 1 2 1 . . Processor 1 | . 1 . . . Hackware . | . . . . . Protection 4 | . 1 3 . . Artifact . | . . . . . Weapon 15 | 2 4 9 . . Energy Gun 4 | 2 . 2 . . Energy Cannon 2 | . . 2 . . Ballistic Gun 8 | . 3 5 . . Ballistic Cannon . | . . . . . Launcher . | . . . . . Special Weapon . | . . . . . Impact Weapon . | . . . . . Slashing Weapon . | . . . . . Piercing Weapon . | . . . . . Special Melee Weapon 1 | . 1 . . . Unidentified Prototypes . | . . . . . Parts Lost 1 | . 1 . . . Power . | . . . . . Propulsion . | . . . . . Utility 1 | . 1 . . . Weapon . | . . . . . Highest Loss Streak 1 | . 1 . . . To Critical Strikes . | . . . . . Average Slot Usage (%) 99 | . 97 99 100 100 Engine 1 | . 5 . . . Core 10 | . 8 11 11 11 Treads 6 | . . 8 16 . Leg 17 | . 28 13 5 22 Device 11 | . 9 13 11 11 Storage 19 | . 14 21 22 22 Protection 7 | . 2 8 11 11 Energy Gun 10 | . 10 8 22 22 Ballistic Gun 11 | . 14 12 . . Naked Turns . | . . . . . Heaviest Build 63 | 12 49 63 57 57 Greatest Support 40 | 20 20 40 40 30 Greatest Overweight (x) 3 | . 2 3 1 1 Average Overweight (x) 1 | . 1 1 1 1 Largest Inventory Capacity 20 | 8 20 20 20 20 Average Capacity 18 | 7 16 20 20 20 Most Carried 20 | 2 10 20 18 18 Average Carried 12 | . 6 15 16 18 Final Capacity 20 | 8 20 20 20 20 Final Carried 18 | 2 10 16 18 18 Class Distribution -------------------- 67% | Mutant 32% | Scavenger-Mutant Dominant Class ---------------- Scavenger-Mutant | -10/Materials Mutant | -9/Materials Mutant | -9/Mines Mutant | -9/Exiles Resources | -11 -10 -9 -9 -9 ----------- Run | Yrd Mat Mat Min Exi Matter Collected 990 | 230 170 516 74 . Remotely . | . . . . . Salvage Created 811 | . 251 516 44 . Parts 82 | . 27 49 6 . Haulers Intercepted . | . . . . . Recyclers Shooed 1 | . . . 1 . Parts Field Recycled . | . . . . . Retrieved Matter . | . . . . . Parts Self-Destructed . | . . . . . Prevented . | . . . . . Kills | -11 -10 -9 -9 -9 ------- Run | Yrd Mat Mat Min Exi Combat Hostiles Destroyed 20 | . 8 9 3 . Guns 20 | . 8 9 3 . Classes Destroyed 5 | . 4 1 . . Tunneler 1 | . 1 . . . Watcher 5 | . 2 3 . . Swarmer 9 | . 6 . 3 . Grunt 6 | . 2 4 . . Sentry 5 | . . 5 . . Best Kill Streak 4 | . 4 2 3 . Combat Bots Only 4 | . 4 2 3 . Max Kills in Single Turn 2 | . 2 1 1 . Gunslinging 1 | . 1 . . . Exploded . | . . . . . Melee . | . . . . . Uniques/NPCs Destroyed . | . . . . . Combat | -11 -10 -9 -9 -9 -------- Run | Yrd Mat Mat Min Exi Hostile Shots Fired 113 | . 52 46 15 . Missed 33 | . 15 12 6 . Damage Taken 1012 | . 398 466 148 . Core 208 | . 80 50 78 . Absorbed by Shields . | . . . . . Core Remaining (%) 84 | 100 68 . . . Volleys Fired 60 | . 22 31 7 . Largest 2 | . 2 2 2 . Hottest 150 | . 80 150 126 . Shots Fired 118 | . 42 62 14 . Gun 116 | . 42 60 14 . Cannon 2 | . . 2 . . Launcher . | . . . . . Special . | . . . . . Kinetic 54 | . 2 52 . . Thermal 64 | . 40 10 14 . Explosive . | . . . . . Electromagnetic . | . . . . . Robot Hit Streak 16 | . 7 16 2 . Robot Miss Streak 7 | . 3 3 7 . Penetration Max . | . . . . . Secondary Targets 3 | . 2 1 . . Max Gunslinging Chain 1 | . 1 1 . . Shots Hit Robots 76 | . 28 44 4 . Core Hits 39 | . 15 21 3 . Critical Kills . | . . . . . Critical Parts Destroyed . | . . . . . Critical Strikes 1 | . . . 1 . Burn 1 | . . . 1 . Melee Attacks 1 | . 1 . . . Impact . | . . . . . Slashing . | . . . . . Piercing . | . . . . . Sneak Attacks . | . . . . . Combat Hostiles . | . . . . . Follow-up Attacks . | . . . . . Damage Inflicted 1037 | . 325 627 85 . Guns 1012 | . 325 602 85 . Cannons 25 | . . 25 . . Explosions . | . . . . . Melee . | . . . . . Ramming . | . . . . . Kinetic 532 | . 14 518 . . Thermal 505 | . 311 109 85 . Explosive . | . . . . . Electromagnetic . | . . . . . Impact . | . . . . . Slashing . | . . . . . Piercing . | . . . . . Highest Corruption . | . . . . . Average Corruption . | . . . . . Corruption Purged . | . . . . . Corruption Blocked . | . . . . . Overload Shots . | . . . . . Overflow Damage . | . . . . . Projectiles . | . . . . . Explosions . | . . . . . Melee . | . . . . . Knockbacks . | . . . . . Impact . | . . . . . Kinetic . | . . . . . Secondary . | . . . . . Self-Inflicted Damage . | . . . . . Shots . | . . . . . Rammed . | . . . . . Targets Rammed . | . . . . . Kicked . | . . . . . Crushed . | . . . . . Highest Temperature 504 | . 185 234 504 . Average Temperature 100 | . 74 45 253 . Received Heat Transfer 309 | . 129 180 . . Effects 2 | . . . 2 . Damage (minor) 1 | . . . 1 . Damage (core) 1 | . . . 1 . Siege Activations . | . . . . . Robots Corrupted . | . . . . . Combat Hostiles . | . . . . . Parts Fried . | . . . . . Impact Corruptions . | . . . . . Robots Melted . | . . . . . Combat Hostiles . | . . . . . Parts Melted 1 | . . . 1 . Heat Transferred 1181 | . 700 222 259 . Parts Sabotaged . | . . . . . Parts Stolen . | . . . . . Parts Stripped . | . . . . . Power Chain Reactions . | . . . . . Alert | -11 -10 -9 -9 -9 ------- Run | Yrd Mat Mat Min Exi Peak Influence 226 | . 226 125 75 . Initial 22 | . . 20 22 . Average 61 | . 79 61 38 . Maximum Alert Level 1 | . 1 . . . Low Security (%) 95 | 100 82 100 100 . Level 1 4 | . 17 . . . Level 2 . | . . . . . Level 3 . | . . . . . Level 4 . | . . . . . Level 5 . | . . . . . High Security . | . . . . . Max Security . | . . . . . Squads Dispatched 1 | . . 1 . . Investigation . | . . . . . Extermination . | . . . . . Reinforcement 1 | . . 1 . . Assault . | . . . . . Garrison . | . . . . . Intercept . | . . . . . Searches Triggered . | . . . . . Construction Impeded . | . . . . . Haulers Reinforced . | . . . . . Active Scanning Responses . | . . . . . Cargo Convoy Interrupts . | . . . . . Stealth | -11 -10 -9 -9 -9 --------- Run | Yrd Mat Mat Min Exi Distress Signals 1 | . 1 . . . Communications Jammed . | . . . . . Distress Signals . | . . . . . Times Spotted 29 | . 12 14 3 . Peak Tracking Total 4 | . 4 3 3 . Tactical Retreats 1 | . 1 . . . Traps | -11 -10 -9 -9 -9 ------- Run | Yrd Mat Mat Min Exi Traps Triggered . | . . . . . Indirectly . | . . . . . Trap Hack Attempts . | . . . . . Triggered . | . . . . . Disarmed . | . . . . . Reprogrammed . | . . . . . Reused . | . . . . . Traps Extracted . | . . . . . Installed . | . . . . . Triggered . | . . . . . Machines | -11 -10 -9 -9 -9 ---------- Run | Yrd Mat Mat Min Exi Machines Disabled 2 | . . 2 . . Max in Single Turn 1 | . . 1 . . Machines Repaired . | . . . . . Machines Dismantled . | . . . . . Machines Sabotaged . | . . . . . Overloaded Fab Kills . | . . . . . Hacking | -11 -10 -9 -9 -9 --------- Run | Yrd Mat Mat Min Exi Machines Accessed 3 | . 2 . 1 . Terminals 3 | . 2 . 1 . Fabricators . | . . . . . Repair Stations . | . . . . . Recycling Units . | . . . . . Scanalyzers . | . . . . . Garrison Access . | . . . . . Total Hacks 6 | . 3 . 3 . Successful 4 | . 3 . 1 . Failed 2 | . . . 2 . Catastrophic . | . . . . . Database Lockouts . | . . . . . Manual . | . . . . . Terminals 6 | . 3 . 3 . Fabricators . | . . . . . Repair Stations . | . . . . . Recycling Units . | . . . . . Scanalyzers . | . . . . . Garrison Access . | . . . . . Terminal Hacks 4 | . 3 . 1 . Record 2 | . 2 . . . Locate Traps 1 | . 1 . . . Recall Investigation 1 | . . . 1 . Fabricator Hacks . | . . . . . Repair Station Hacks . | . . . . . Recycling Unit Hacks . | . . . . . Scanalyzer . | . . . . . Garrison Access Hacks . | . . . . . Unauthorized Hacks . | . . . . . Terminals . | . . . . . Fabricators . | . . . . . Repair Stations . | . . . . . Recycling Units . | . . . . . Scanalyzers . | . . . . . Garrison Access . | . . . . . Data Cores Recovered . | . . . . . Used . | . . . . . Hacking Detections 1 | . . . 1 . Full Trace Events . | . . . . . Feedback Events . | . . . . . Feedback Blocked . | . . . . . Robot Schematics Acquired . | . . . . . Robots Built . | . . . . . Authchips . | . . . . . Time . | . . . . . Total Robot Build Rating . | . . . . . Part Schematics Acquired . | . . . . . Parts Built . | . . . . . Authchips . | . . . . . Time . | . . . . . Total Part Build Rating . | . . . . . Parts Repaired . | . . . . . Time . | . . . . . Parts Recycled . | . . . . . Recycled Matter . | . . . . . Retrieved Matter . | . . . . . Retrieved Components . | . . . . . Parts Scanalyzed . | . . . . . Part Schematics Acquired . | . . . . . Parts Damaged . | . . . . . Bothacking | -11 -10 -9 -9 -9 ------------ Run | Yrd Mat Mat Min Exi Used RIF Installer . | . . . . . Robots Hacked 1 | . 1 . . . Non-combat 1 | . 1 . . . Combat . | . . . . . Robot Hacks Applied 1 | . 1 . . . parse_system 1 | . 1 . . . Relay Couplers Released . | . . . . . Fabnet Peak Effective % . | . . . . . Robots Rewired . | . . . . . Allies Hacked . | . . . . . Hacks Repelled . | . . . . . Allies | -11 -10 -9 -9 -9 -------- Run | Yrd Mat Mat Min Exi Total Allies 2 | . . . 2 . Largest Group 2 | . . . 2 . Highest-Rated Group 49 | . . . 49 . Highest-Rated Ally 31 | . . . 31 . Total Orders . | . . . . . Ally Attacks 4 | . . . 4 . Total Damage 64 | . . . 64 . Kills . | . . . . . Allies Corrupted . | . . . . . Allies Melted . | . . . . . Intel | -11 -10 -9 -9 -9 ------- Run | Yrd Mat Mat Min Exi Robot Analysis Total . | . . . . . Derelict Logs Recovered . | . . . . . Drone Launches . | . . . . . Drone Recoveries . | . . . . . Exploration | -11 -10 -9 -9 -9 ------------- Run | Yrd Mat Mat Min Exi Turns Passed 2700 | 96 750 1561 285 8 Spaces Moved 1030 | 76 292 545 113 4 Core 12 | 12 . . . . Treads 290 | . . 214 76 . Legs 728 | 64 292 331 37 4 Wheels . | . . . . . Hover . | . . . . . Flight . | . . . . . Fastest Speed 50 | 50 120 240 190 190 Average Speed 228 | 108 213 253 223 190 Slowest Speed 330 | 120 260 330 240 190 Overloaded Moves . | . . . . . Propulsion Burnouts . | . . . . . Robots Hopped . | . . . . . Cave-ins Triggered . | . . . . . Exploration Rate (%) 24 | 4 44 38 35 2 Regions Visited 4 Branch Regions 2 Pre-discovered Areas . | . . . . . Known Exits Taken . | . . . . . Unknown Exits Taken 4 | 1 1 1 1 . Scrap Searched 1 | . . . 1 . Spaces Dug . | . . . . . Terrain Destroyed 1 | . . 1 . . Melee . | . . . . . Projectile 1 | . . 1 . . AOE . | . . . . . Terrain Rammed . | . . . . . Walls Destroyed . | . . . . . Machines Disabled . | . . . . . Actions | -11 -10 -9 -9 -9 --------- Run | Yrd Mat Mat Min Exi Total 1269 | 89 377 668 131 4 Wait 61 | . 18 35 8 . Move 1026 | 75 291 544 112 4 Hop . | . . . . . Pick Up 46 | 8 18 18 2 . Fast Attach 1 | . . 1 . . Attach 16 | 6 7 3 . . Detach 5 | . 3 2 . . Swap 33 | . 10 21 2 . Drop 20 | . 7 13 . . Fire 60 | . 22 31 7 . Melee 1 | . 1 . . . Ram . | . . . . . Kick . | . . . . . Crush . | . . . . . Escape Stasis . | . . . . . Rewire . | . . . . . Trap . | . . . . . Miscellaneous . | . . . . . Route ------- -11/Scrapyard -10/Materials (discovered 3 exits: *Mat / [*Min x2]) -9/Materials -9/Mines -9/Exiles History --------- Turn | Location | Event 33 | -11/Scrapyard | Discovered new exit (range 15) 97 | -11/Scrapyard | Entered Materials 223 | -10/Materials | Discovered new exit (range 7) 312 | -10/Materials | Build established: Mutant 426 | -10/Materials | Discovered new exit (range 16) 676 | -10/Materials | Discovered new exit (range 16) 677 | -10/Materials | Build established: Scavenger-Mutant 847 | -10/Materials | Entered another Materials area 847 | -9/Materials | Evolved 2 slots: Utility x2 1710 | -9/Materials | Build established: Mutant 1943 | -9/Materials | Discovered new exit (range 13) 2408 | -9/Materials | Entered Mines 2686 | -9/Mines | Deemed a non-threat by the Exiles lab entrance 2686 | -9/Mines | Discovered new exit (range 5) 2693 | -9/Mines | Entered Exiles 2701 | -9/Exiles | Self-destructed Last Messages --------------- S-10 Pest destroyed. R-06 Scavenger collects Flight Unit. Overheating: Core damaged (-68). Acquired 5 matter. K-01 Serf collects debris. Overheating: Hcp. Storage Unit damaged (-145). Acquired Carbon-fiber Leg. K-01 Serf collects debris. R-06 Scavenger collects Lgt. Assault Rifle. Acquired 19 matter. K-01 Serf collects debris. R-06 Scavenger collects Flight Unit. Acquired 1 matter. K-01 Serf collects debris. R-06 Scavenger collects Flight Unit. K-01 Serf collects debris. "No threat detected, you may enter." EXIT=FOUND LOCATION=UNKNOWN GOAL=ESCAPE Map ----- +----------------------------------------------------+ | ??????????????????????????????????????? | | ??????????????????????????????????????? | | ??????????????????????????????????????? | | ??????????????????????????????????????? | | ??????????????????????????????????????? | | ??????????????????????????????????????? | | ??????????????????????????????????????? | | ??????????????????????????????????????? | | ??????????????????????????????????????? | | ??????????????????????????????????????? | | ??????????????????????????????????????? | | ??????????????????????????????????????? | | ??????????????????????????????????????? | | ???????????????? ????????????????????? | | ?????????????? #???????????????????? | | ?????????????? ##?????????????????? | | ????????????? * ##???????????????? | | ?????????????? ???????????????? | | ??????????????? ???????????????? | | ????????????????? ??????????????? | | ?????????????????## ??????????????? | | ??????????????????" #?????????????? | | ????????????????????# ###??????????? | | ????????????????????# ##?????????? | | ?????????????????????# ###???????? | | ???????????????????????# @ #???????? | | ???????????????????????# ##???????? | | ???????????????????????## ##????????? | | ????????????????????????#####?????????? | | ??????????????????????????????????????? | | ??????????????????????????????????????? | | ??????????????????????????????????????? | | ??????????????????????????????????????? | | ??????????????????????????????????????? | | ??????????????????????????????????????? | | ??????????????????????????????????????? | | ??????????????????????????????????????? | | ??????????????????????????????????????? | | ??????????????????????????????????????? | | ??????????????????????????????????????? | | ??????????????????????????????????????? | | ??????????????????????????????????????? | | ??????????????????????????????????????? | | ??????????????????????????????????????? | | ??????????????????????????????????????? | | ??????????????????????????????????????? | | ??????????????????????????????????????? | | ??????????????????????????????????????? | | ??????????????????????????????????????? | | ??????????????????????????????????????? | +----------------------------------------------------+ Best States ------------- Heat Dissipation 28 Energy Generation 14 Energy Capacity 250 Matter Stores 400 Matter Capacity 400 Sight Range 16 Robot Scan Range 14 Terrain Scan Range 16 Terrain Scan Density 85 Armor Coverage 150 Evasion (%) 55 Recoil Reduction 2 Item Schematics ----------------- None Robot Schematics ------------------ None Fabricated ------------ Nothing Alien Tech Used ----------------- None Achievements -------------- None Challenges ------------ None Game ------ Seed SniperSuperchargedFragment Manual? 0 Play Time 00:46:23 Cumulative 3.8 hours Start 2024.07.01 @ 15:21:08 End 2024.07.01 @ 16:37:43 Sessions 3 Manual Loads 0 Difficulty Rogue Special Mode None Game No. 4 Rogue 4 Adventurer 0 Explorer 0 Win Type - Total 0 Types 0/0/0/0/0/0/0/0/0 Lore% 1 Gallery% 8 Achievement% 6 Wizard Run 0 Options --------- Layout 0 ASCII 0 Keyboard 0 Movement Arrows Keybinds 0 Fullscreen 1 Font 24/Smallcaps Map View 76x50 Zoom Use 0% Tactical HUD 0 Map Filters NONE Filters NONE Steam 1 RUN: 94d20a62-4220-41e6-9787-d0488452199c